fUST/lending_fUST_20251006
["ID","MTS","AMOUNT","RATE_DAILY","PERIOD"]
[389498482,1759683070456,-500.0,0.00018356,2]
[389498483,1759683070465,-690.9,0.00018356,2]
[389498484,1759683070475,-505.92,0.00018356,2]
[389498485,1759683070484,-500.0,0.00018356,2]
[389498486,1759683070494,-500.0,0.00018356,2]
[389498487,1759683070503,-500.0,0.00018356,2]
[389498488,1759683070513,-500.0,0.00018356,2]
[389498489,1759683070524,-766.86,0.00018356,2]
[389498490,1759683070534,-500.0,0.00018356,2]
[389498491,1759683070544,-750.6,0.00018356,2]
[389498492,1759683070553,-662.6,0.00018356,2]
[389498493,1759683070562,-500.0,0.00018356,2]
[389498494,1759683070571,-500.0,0.00018356,2]
[389498495,1759683070580,-2886.56,0.00018356,2]
[389498496,1759683070590,-151.0,0.00018356,2]
[389498497,1759683070599,-548.46,0.00018356,2]
[389498498,1759683070608,-878.92,0.00018356,2]
[389498499,1759683070619,-1381.99,0.00018356,2]
[389498500,1759683070627,-500.0,0.00018356,2]
[389498501,1759683070636,-500.0,0.00018356,2]
[389498502,1759683070645,-500.0,0.00018356,2]
[389498503,1759683070655,-500.0,0.00018356,2]
[389498504,1759683070665,-500.0,0.00018356,2]
[389498505,1759683070674,-1231.65,0.00018356,2]
[389498506,1759683070683,-500.0,0.00018356,2]
[389498507,1759683070691,-656.49,0.00018356,2]
[389498508,1759683070701,-500.0,0.00018356,2]
[389498509,1759683070717,-1288.0,0.00018356,2]
[389498510,1759683070726,-675.41,0.00018356,2]
[389498511,1759683070735,-519.32,0.00018356,2]
[389498512,1759683070744,-828.85,0.00018356,2]
[389498513,1759683070753,-843.89,0.00018356,2]
[389498514,1759683070763,-500.0,0.00018356,2]
[389498515,1759683070773,-500.0,0.00018356,2]
[389498516,1759683070783,-500.0,0.00018356,2]
[389498517,1759683070794,-1439.12,0.00018356,2]
[389498518,1759683070805,-500.0,0.00018356,2]
[389498519,1759683070817,-1208.03,0.00018356,2]
[389498520,1759683070828,-500.0,0.00018356,2]
[389498521,1759683070839,-367.52768597,0.00018356,2]
[389498522,1759683070852,-2847.73,0.00018356,2]
[389498523,1759683070865,-500.0,0.00018356,2]
[389498524,1759683070878,-1201.88,0.00018356,2]
[389498525,1759683070892,-500.0,0.00018356,2]
[389498526,1759683070903,-7543.42,0.00018356,2]
[389498527,1759683070915,-507.11481283,0.00018356,2]
[389498528,1759683070927,-2501.47,0.00018356,2]
[389498529,1759683070939,-605.92,0.00018356,2]
[389498530,1759683070950,-2829.49,0.00018356,2]
[389498531,1759683070975,-500.0,0.00018356,2]
[389498532,1759683070988,-7633.12,0.00018356,2]
[389498533,1759683071002,-500.0,0.00018356,2]
[389498534,1759683071014,-1955.89,0.00018356,2]
[389498535,1759683071026,-500.0,0.00018356,2]
[389498536,1759683071036,-500.0,0.00018356,2]
[389498537,1759683071049,-500.0,0.00018356,2]
[389498538,1759683071060,-1524.42,0.00018356,2]
[389498539,1759683071072,-1078.1,0.00018356,2]
[389498540,1759683071085,-500.0,0.00018356,2]
[389498541,1759683071096,-2430.6,0.00018356,2]
[389498542,1759683071109,-1566.87,0.00018356,2]
[389498543,1759683071120,-3661.35,0.00018356,2]
[389498544,1759683071131,-5648.74,0.00018356,2]
[389498545,1759683071142,-941.56,0.00018356,2]
[389498546,1759683071153,-500.0,0.00018356,2]
[389498547,1759683071164,-2793.01,0.00018356,2]
[389498548,1759683071176,-500.0,0.00018356,2]
[389498549,1759683071191,-500.0,0.00018356,2]
[389498550,1759683071204,-4190.87,0.00018356,2]
[389498551,1759683071227,-712.14,0.00018356,2]
[389498552,1759683071241,-1244.49,0.00018356,2]
[389498553,1759683071252,-7876.79,0.00018356,2]
[389498554,1759683071264,-500.0,0.00018356,2]
[389498555,1759683071277,-1636.71,0.00018356,2]
[389498556,1759683071289,-500.0,0.00018356,2]
[389498557,1759683071299,-500.0,0.00018356,2]
[389498558,1759683071310,-500.0,0.00018356,2]
[389498559,1759683071322,-1542.81,0.00018356,2]
[389498560,1759683071333,-691.74,0.00018356,2]
[389498561,1759683071344,-746.45,0.00018356,2]
[389498562,1759683071355,-745.75,0.00018356,2]
[389498563,1759683071366,-864.59,0.00018356,2]
[389498564,1759683071378,-1625.81,0.00018356,2]
[389498565,1759683071388,-1276.87,0.00018356,2]
[389498566,1759683071400,-914.33,0.00018356,2]
[389498567,1759683071411,-1151.73,0.00018356,2]
[389498568,1759683071429,-1768.9,0.00018356,2]
[389498569,1759683071444,-4128.88,0.00018356,2]
[389498570,1759683071465,-1072.496459,0.00018356,2]
[389498571,1759683071478,-1072.496459,0.00018356,2]
[389498572,1759683071490,-500.0,0.00018356,2]
[389498573,1759683071505,-1072.496459,0.00018356,2]
[389498574,1759683071517,-601.81,0.00018356,2]
[389498575,1759683071530,-1072.496459,0.00018356,2]
[389498576,1759683071543,-500.0,0.00018356,2]
[389498577,1759683071557,-1631.89,0.00018356,2]
[389498578,1759683071570,-2717.3,0.00018356,2]
[389498579,1759683071584,-853.97,0.00018356,2]
[389498580,1759683071596,-500.0,0.00018356,2]
[389498581,1759683071608,-5655.4,0.00018356,2]
[389498582,1759683071620,-644.18,0.00018356,2]
[389498583,1759683071632,-851.61,0.00018356,2]
[389498584,1759683071644,-5499.36,0.00018356,2]
[389498585,1759683071657,-4498.11,0.00018356,2]
[389498586,1759683071670,-4396.27,0.00018356,2]
[389498587,1759683071681,-601.93,0.00018356,2]
[389498588,1759683071693,-500.0,0.00018356,2]
[389498589,1759683071711,-500.0,0.00018356,2]
[389498590,1759683071726,-830.43,0.00018356,2]
[389498591,1759683071740,-500.0,0.00018356,2]
[389498592,1759683071754,-500.0,0.00018356,2]
[389498593,1759683071767,-500.0,0.00018356,2]
[389498594,1759683071783,-921.77,0.00018356,2]
[389498595,1759683071796,-1181.0,0.00018356,2]
[389498596,1759683071810,-2597.62,0.00018356,2]
[389498597,1759683071822,-1226.01,0.00018356,2]
[389498598,1759683071834,-1056.87,0.00018356,2]
[389498599,1759683071844,-500.0,0.00018356,2]
[389498600,1759683071856,-1595.17,0.00018356,2]
[389498601,1759683071871,-3567.7,0.00018356,2]
[389498602,1759683071885,-4467.37,0.00018356,2]
[389498603,1759683071898,-500.0,0.00018356,2]
[389498604,1759683071909,-2425.68,0.00018356,2]
[389498605,1759683071921,-1398.29,0.00018356,2]
[389498606,1759683071935,-509.51,0.00018356,2]
[389498607,1759683071947,-4931.82,0.00018356,2]
[389498608,1759683071965,-500.0,0.00018356,2]
[389498609,1759683071975,-500.0,0.00018356,2]
[389498610,1759683071987,-2146.05,0.00018356,2]
[389498611,1759683071999,-2006.77,0.00018356,2]
[389498612,1759683072010,-500.0,0.00018356,2]
[389498613,1759683072021,-500.0,0.00018356,2]
[389498614,1759683072033,-1916.69,0.00018356,2]
[389498615,1759683072046,-500.0,0.00018356,2]
[389498616,1759683072058,-9096.5,0.00018356,2]
[389498617,1759683072070,-3164.66,0.00018356,2]
[389498618,1759683072083,-1132.36,0.00018356,2]
[389498619,1759683072097,-593.97,0.00018356,2]
[389498620,1759683072110,-500.0,0.00018356,2]
[389498621,1759683072123,-500.0,0.00018356,2]
[389498622,1759683072135,-500.0,0.00018356,2]
[389498623,1759683072147,-1024.56,0.00018356,2]
[389498624,1759683072172,-703.22,0.00018356,2]
[389498625,1759683072193,-500.0,0.00018356,2]
[389498626,1759683072216,-500.0,0.00018356,2]
[389498627,1759683072233,-1118.02,0.00018356,2]
[389498628,1759683072246,-500.0,0.00018356,2]
[389498629,1759683072259,-589.48245182,0.00018356,2]
[389498630,1759683072271,-1995.61,0.00018356,2]
[389498631,1759683072286,-2310.91,0.00018356,2]
[389498632,1759683072299,-583.51,0.00018356,2]
[389498633,1759683072311,-741.26,0.00018356,2]
[389498634,1759683072323,-4044.23,0.00018356,2]
[389498635,1759683072336,-500.0,0.00018356,2]
[389498636,1759683072350,-1500.0,0.00018368,2]
[389498637,1759683072363,-484.97126142,0.00018368,2]
[389498638,1759683072377,-246.48150504,0.00018374,2]
[389498639,1759683072390,-1000.0,0.00018374,2]
[389498640,1759683072403,-245.0,0.00018389,2]
[389498641,1759683072417,-5484.20036178,0.00018389,2]
[389498642,1759683072430,-500.0,0.00018389,2]
[389498643,1759683072443,-500.0,0.00018389,2]
[389498644,1759683072459,-1752.0,0.00018389,2]
[389498645,1759683072472,-466.7293526,0.00018389,2]
[389498646,1759683072485,-500.0,0.00018389,2]
[389498647,1759683072497,-500.0,0.00018389,2]
[389498648,1759683072509,-500.0,0.00018389,2]
[389498649,1759683072521,-500.0,0.00018389,2]
[389498650,1759683072532,-500.0,0.00018389,2]
[389498651,1759683072547,-151.0,0.00018389,2]
[389498652,1759683072559,-151.0,0.00018389,2]
[389498653,1759683072571,-250.0,0.000184,2]
[389498654,1759683072583,-201.0,0.00018402,2]
[389498655,1759683072595,-720.0,0.00018442,2]
[389498656,1759683072606,-500.0,0.00018473,2]
[389498657,1759683072618,-500.39984099,0.00018473,2]
[389498658,1759683072630,-200.14425049,0.00018473,2]
[389498659,1759683072641,-579.01446063,0.00018473,2]
[389498660,1759683072653,-500.0,0.00018473,2]
[389498661,1759683072664,-500.0,0.00018473,2]
[389498662,1759683072676,-500.0,0.00018473,2]
[389498663,1759683072689,-200.14839643,0.00018473,2]
[389498664,1759683072700,-500.0,0.00018473,2]
[389498665,1759683072715,-500.0,0.00018473,2]
[389498666,1759683072726,-500.0,0.00018473,2]
[389498667,1759683072738,-500.0,0.00018473,2]
[389498668,1759683072749,-500.0,0.00018473,2]
[389498669,1759683072765,-500.0,0.00018473,2]
[389498670,1759683072780,-500.0,0.00018473,2]
[389498671,1759683072794,-500.23133806,0.00018473,2]
[389498672,1759683072808,-500.24792783,0.00018473,2]
[389498673,1759683072822,-500.0,0.00018473,2]
[389498674,1759683072835,-500.0,0.00018473,2]
[389498675,1759683072848,-500.16291669,0.00018473,2]
[389498676,1759683072861,-500.0,0.00018473,2]
[389498677,1759683072875,-627.59865896,0.00018473,2]
[389498678,1759683072888,-500.0,0.00018473,2]
[389498679,1759683072901,-510.36459531,0.00018473,2]
[389498680,1759683072913,-500.0,0.00018473,2]
[389498681,1759683072926,-500.0,0.00018473,2]
[389498682,1759683072938,-500.0,0.00018473,2]
[389498683,1759683072951,-500.0,0.00018473,2]
[389498684,1759683072970,-500.0,0.00018473,2]
[389498685,1759683072983,-500.0,0.00018473,2]
[389498686,1759683072996,-500.0,0.00018473,2]
[389498687,1759683073008,-530.60241216,0.00018473,2]
[389498688,1759683073021,-500.0,0.00018473,2]
[389498689,1759683073033,-500.0,0.00018473,2]
[389498690,1759683073045,-500.0,0.00018473,2]
[389498691,1759683073057,-161.50282441,0.00018473,2]
[389498692,1759683073070,-432.25051724,0.00018473,2]
[389498693,1759683073084,-500.0,0.00018473,2]
[389498694,1759683073096,-500.0,0.00018473,2]
[389498695,1759683073108,-500.0,0.00018473,2]
[389498696,1759683073119,-449.6561013,0.00018473,2]
[389498697,1759683073130,-500.0,0.00018473,2]
[389498698,1759683073142,-500.0,0.00018473,2]
[389498699,1759683073153,-504.31003243,0.00018473,2]
[389498700,1759683073165,-500.25583206,0.00018473,2]
[389498701,1759683073176,-500.0,0.00018473,2]
[389498702,1759683073189,-212.3223848,0.00018473,2]
[389498703,1759683073203,-500.0,0.00018473,2]
[389498704,1759683073219,-500.0,0.00018473,2]
[389498705,1759683073231,-500.0,0.00018473,2]
[389498706,1759683073243,-500.0,0.00018473,2]
[389498707,1759683073255,-500.0,0.00018473,2]
[389498708,1759683073266,-500.0,0.00018473,2]
[389498709,1759683073280,-500.0,0.00018473,2]
[389498710,1759683073292,-500.0,0.00018473,2]
[389498711,1759683073303,-500.0,0.00018473,2]
[389498712,1759683073315,-500.0,0.00018473,2]
[389498713,1759683073326,-500.0,0.00018473,2]
[389498714,1759683073337,-500.44900947,0.00018473,2]
[389498715,1759683073350,-175.17243536,0.00018473,2]
[389498716,1759683073363,-156.05917499,0.00018473,2]
[389498717,1759683073375,-500.0,0.00018473,2]
[389498718,1759683073386,-500.0,0.00018473,2]
[389498719,1759683073398,-163.88694034,0.00018473,2]
[389498720,1759683073409,-500.0,0.00018473,2]
[389498721,1759683073422,-201.0,0.00018483,2]
[389498722,1759683073433,-167.83565487,0.00018486,2]
[389498723,1759683073442,-150.0,0.00018486,2]
[389498724,1759683073451,-304.619789,0.00018493,2]
[389498725,1759683073466,-184.14147557,0.00018499,2]
[389498726,1759683073477,-200.0,0.00018499,2]
[389498727,1759683073487,-200.0,0.00018499,2]
[389498728,1759683073496,-161.78556266,0.00018499,2]
[389498729,1759683073507,-1480227.68907415,0.000185,2]
[389498730,1759683073722,-2808.78939501,0.000185,2]
[389498731,1759683073734,-4268.2402151,0.000185,2]
[389498732,1759683074490,-339.64642572,0.00016712,2]
[389498733,1759683074503,-422.05357428,0.00016712,2]
[389498734,1759683074512,-408.46911104,0.00016712,2]
[389498735,1759683074523,-761.7,0.00016986,2]
[389498736,1759683074534,-761.7,0.0001726,2]
[389498737,1759683074545,-154.39962336,0.00017534,2]
[389498738,1759683074934,-3266.43037664,0.00017534,2]
[389498739,1759683074944,-761.7,0.00017534,2]
[389498740,1759683074954,-3420.83,0.00017808,2]
[389498741,1759683074972,-761.7,0.00017808,2]
[389498742,1759683074982,-3420.83,0.00018082,2]
[389498743,1759683074992,-761.7,0.00018082,2]
[389498744,1759683075003,-150.0,0.00018289,2]
[389498745,1759683075013,-3420.83,0.00018356,2]
[389498746,1759683075022,-761.7,0.00018356,2]
[389498747,1759683075032,-10559.58153544,0.000185,2]
[389498748,1759683075047,-25620.15092012,0.000185,2]
[389498749,1759683075061,-2888.48717198,0.000185,2]
[389498750,1759683075075,-8582.65082951,0.000185,2]
[389498751,1759683075089,-152685.48287506,0.000185,2]
[389498752,1759683075104,-11784.24962133,0.000185,2]
[389498753,1759683075118,-7128.20498522,0.000185,2]
[389498754,1759683075129,-346.21932609,0.000185,2]
[389498755,1759683075217,345.235761,0.00015525,2]
[389498756,1759683075616,-677.78,0.00016428,3]
[389498757,1759683075627,-500.0,0.00016438,2]
[389498758,1759683075637,-500.0,0.00016438,2]
[389498759,1759683075648,-500.0,0.00016438,2]
[389498760,1759683075658,-500.0,0.00016712,2]
[389498761,1759683075670,-500.0,0.00016712,2]
[389498762,1759683075682,-500.0,0.00016986,2]
[389498763,1759683075693,-500.0,0.0001726,2]
[389498764,1759683075706,-500.0,0.00017534,2]
[389498765,1759683075728,-212.107,0.00018289,2]
[389498766,1759683075738,-187.186,0.00018289,2]
[389498767,1759683075749,-49090.89027113,0.000185,2]
[389498768,1759683075763,-230581.28831835,0.000185,2]
[389498769,1759683075773,-250.0,0.000185,2]
[389498770,1759683075784,-250.3,0.000185,2]
[389498771,1759683075794,-7935.10645652,0.000185,2]
[389498772,1759683075805,-76563.62608273,0.000185,2]
[389498773,1759683075815,-151.0,0.000185,2]
[389498774,1759683075825,-151.0,0.000185,2]
[389498775,1759683075835,-151.0,0.000185,2]
[389498776,1759683075845,-156.171134,0.000185,2]
[389498777,1759683075855,-1072.496459,0.000185,2]
[389498778,1759683075864,-1072.496459,0.000185,2]
[389498779,1759683075875,-1072.496459,0.000185,2]
[389498780,1759683075884,-1072.496468,0.000185,2]
[389498781,1759683075894,-160.0,0.00018522,2]
[389498782,1759683075904,-740.0,0.00018536,2]
[389498783,1759683075913,-160.0,0.00018577,2]
[389498784,1759683075923,-533.57524315,0.00018577,2]
[389498785,1759683075932,-234.13847417,0.00018577,2]
[389498786,1759683075942,-160.0,0.00018577,2]
[389498787,1759683075952,-293.57808533,0.00018577,2]
[389498788,1759683075969,-160.0,0.00018577,2]
[389498789,1759683075980,-160.0,0.00018577,2]
[389498790,1759683075990,-160.0,0.00018577,2]
[389498791,1759683076000,-160.0,0.00018577,2]
[389498792,1759683076010,-201.0,0.00018592,2]
[389498793,1759683076021,-2000.0,0.00018616,2]
[389498794,1759683076031,-2000.0,0.00018616,2]
[389498795,1759683076044,-2000.0,0.00018616,2]
[389498796,1759683076055,-1437.58555441,0.00018616,2]
[389498797,1759683076065,-2000.0,0.00018616,2]
[389498798,1759683076075,-2000.0,0.00018616,2]
[389498799,1759683076085,-2000.0,0.00018616,2]
[389498800,1759683076094,-2000.0,0.00018616,2]
[389498801,1759683076104,-2000.0,0.00018616,2]
[389498802,1759683076113,-2000.0,0.00018616,2]
[389498803,1759683076123,-2000.0,0.00018616,2]
[389498804,1759683076132,-1128.18149537,0.00018616,2]
[389498805,1759683076143,-1803.64605075,0.00018616,2]
[389498806,1759683076153,-2000.0,0.00018616,2]
[389498807,1759683076163,-2000.0,0.00018616,2]
[389498808,1759683076172,-2099.55047077,0.00018616,2]
[389498809,1759683076182,-2000.0,0.00018616,2]
[389498810,1759683076197,-403.0854996,0.00018616,2]
[389498811,1759683076215,-2000.0,0.00018616,2]
[389498812,1759683076224,-2000.0,0.00018616,2]
[389498813,1759683076236,-2000.0,0.00018616,2]
[389498814,1759683076246,-2000.0,0.00018616,2]
[389498815,1759683076256,-1903.33217944,0.00018625,2]
[389498816,1759683076267,-200.0,0.00018629,2]
[389498817,1759683076277,-500.0,0.0001863,2]
[389498818,1759683076286,-500.0,0.0001863,2]
[389498819,1759683076296,-1462.89,0.0001863,2]
[389498820,1759683076306,-500.0,0.0001863,2]
[389498821,1759683076315,-500.0,0.0001863,2]
[389498822,1759683076327,-500.0,0.0001863,2]
[389498823,1759683076336,-500.0,0.0001863,2]
[389498824,1759683076345,-607.69,0.0001863,2]
[389498825,1759683076354,-855.9,0.0001863,2]
[389498826,1759683076363,-500.0,0.0001863,2]
[389498827,1759683076373,-769.36,0.0001863,2]
[389498828,1759683076383,-500.0,0.0001863,2]
[389498829,1759683076392,-500.0,0.0001863,2]
[389498830,1759683076402,-500.0,0.0001863,2]
[389498831,1759683076412,-994.94,0.0001863,2]
[389498832,1759683076422,-500.0,0.0001863,2]
[389498833,1759683076432,-474.07652716,0.0001863,2]
[389498834,1759683076441,-500.0,0.0001863,2]
[389498835,1759683076452,-1206.92,0.0001863,2]
[389498836,1759683076468,-500.0,0.0001863,2]
[389498837,1759683076478,-500.0,0.0001863,2]
[389498838,1759683076487,-500.0,0.0001863,2]
[389498839,1759683076498,-500.0,0.0001863,2]
[389498840,1759683076509,-762.91,0.0001863,2]
[389498841,1759683076520,-992.97,0.0001863,2]
[389498842,1759683076533,-842.2,0.0001863,2]
[389498843,1759683076547,-500.0,0.0001863,2]
[389498844,1759683076558,-912.33,0.0001863,2]
[389498845,1759683076568,-500.0,0.0001863,2]
[389498846,1759683076578,-500.0,0.0001863,2]
[389498847,1759683076588,-500.0,0.0001863,2]
[389498848,1759683076598,-500.0,0.0001863,2]
[389498849,1759683076608,-392.94135925,0.0001863,2]
[389498850,1759683076618,-500.0,0.0001863,2]
[389498851,1759683076627,-500.0,0.0001863,2]
[389498852,1759683076637,-640.99,0.0001863,2]
[389498853,1759683076646,-500.0,0.0001863,2]
[389498854,1759683076654,-500.0,0.0001863,2]
[389498855,1759683076663,-751.03,0.0001863,2]
[389498856,1759683076672,-2842.52,0.0001863,2]
[389498857,1759683076681,-500.0,0.0001863,2]
[389498858,1759683076690,-500.0,0.0001863,2]
[389498859,1759683076699,-569.08,0.0001863,2]
[389498860,1759683076713,-500.0,0.0001863,2]
[389498861,1759683076722,-211.09761228,0.0001863,2]
[389498862,1759683076731,-905.39,0.0001863,2]
[389498863,1759683076741,-1559.51,0.0001863,2]
[389498864,1759683076750,-863.89,0.0001863,2]
[389498865,1759683076760,-727.65,0.0001863,2]
[389498866,1759683076770,-450.50083147,0.0001863,2]
[389498867,1759683076779,-500.0,0.0001863,2]
[389498868,1759683076788,-500.0,0.0001863,2]
[389498869,1759683076798,-951.46,0.0001863,2]
[389498870,1759683076807,-500.0,0.0001863,2]
[389498871,1759683076817,-500.0,0.0001863,2]
[389498872,1759683076827,-500.0,0.0001863,2]
[389498873,1759683076837,-500.0,0.0001863,2]
[389498874,1759683076846,-500.0,0.0001863,2]
[389498875,1759683076857,-500.0,0.0001863,2]
[389498876,1759683076868,-500.0,0.0001863,2]
[389498877,1759683076878,-1271.97,0.0001863,2]
[389498878,1759683076889,-500.0,0.0001863,2]
[389498879,1759683076900,-500.0,0.0001863,2]
[389498880,1759683076910,-665.62,0.0001863,2]
[389498881,1759683076921,-665.43,0.0001863,2]
[389498882,1759683076932,-627.59,0.0001863,2]
[389498883,1759683076942,-500.0,0.0001863,2]
[389498884,1759683076952,-500.0,0.0001863,2]
[389498885,1759683076968,-3139.2,0.0001863,2]
[389498886,1759683076978,-707.99,0.0001863,2]
[389498887,1759683076991,-500.0,0.0001863,2]
[389498888,1759683077001,-577.86,0.0001863,2]
[389498889,1759683077011,-500.0,0.0001863,2]
[389498890,1759683077022,-1861.48,0.0001863,2]
[389498891,1759683077032,-500.0,0.0001863,2]
[389498892,1759683077042,-706.46,0.0001863,2]
[389498893,1759683077052,-500.0,0.0001863,2]
[389498894,1759683077062,-1077.99,0.0001863,2]
[389498895,1759683077072,-500.0,0.0001863,2]
[389498896,1759683077081,-500.0,0.0001863,2]
[389498897,1759683077091,-653.03,0.0001863,2]
[389498898,1759683077100,-769.59,0.0001863,2]
[389498899,1759683077109,-500.0,0.0001863,2]
[389498900,1759683077119,-500.0,0.0001863,2]
[389498901,1759683077132,-1276.47,0.0001863,2]
[389498902,1759683077141,-500.0,0.0001863,2]
[389498903,1759683077151,-690.87,0.0001863,2]
[389498904,1759683077161,-507.23,0.0001863,2]
[389498905,1759683077171,-1894.19,0.0001863,2]
[389498906,1759683077181,-500.0,0.0001863,2]
[389498907,1759683077193,-1293.08,0.0001863,2]
[389498908,1759683077203,-761.4,0.0001863,2]
[389498909,1759683077221,-922.24,0.0001863,2]
[389498910,1759683077232,-500.0,0.0001863,2]
[389498911,1759683077242,-1589.72,0.0001863,2]
[389498912,1759683077251,-500.0,0.0001863,2]
[389498913,1759683077262,-3451.89,0.0001863,2]
[389498914,1759683077271,-1321.69,0.0001863,2]
[389498915,1759683077285,-500.0,0.0001863,2]
[389498916,1759683077295,-587.27,0.0001863,2]
[389498917,1759683077305,-500.0,0.0001863,2]
[389498918,1759683077315,-500.0,0.0001863,2]
[389498919,1759683077324,-500.0,0.0001863,2]
[389498920,1759683077334,-919.59,0.0001863,2]
[389498921,1759683077343,-586.99,0.0001863,2]
[389498922,1759683077352,-500.0,0.0001863,2]
[389498923,1759683077361,-1240.25,0.0001863,2]
[389498924,1759683077371,-1980.12,0.0001863,2]
[389498925,1759683077381,-500.0,0.0001863,2]
[389498926,1759683077390,-500.0,0.0001863,2]
[389498927,1759683077400,-589.1,0.0001863,2]
[389498928,1759683077409,-500.0,0.0001863,2]
[389498929,1759683077418,-690.9,0.0001863,2]
[389498930,1759683077428,-505.92,0.0001863,2]
[389498931,1759683077438,-500.0,0.0001863,2]
[389498932,1759683077448,-500.0,0.0001863,2]
[389498933,1759683077464,-500.0,0.0001863,2]
[389498934,1759683077474,-500.0,0.0001863,2]
[389498935,1759683077485,-766.86,0.0001863,2]
[389498936,1759683077495,-500.0,0.0001863,2]
[389498937,1759683077504,-750.6,0.0001863,2]
[389498938,1759683077514,-662.6,0.0001863,2]
[389498939,1759683077523,-500.0,0.0001863,2]
[389498940,1759683077533,-500.0,0.0001863,2]
[389498941,1759683077668,-2886.56,0.0001863,2]
[389498942,1759683077718,-548.46,0.0001863,2]
[389498943,1759683077728,-878.92,0.0001863,2]
[389498944,1759683077737,-1381.99,0.0001863,2]
[389498945,1759683077747,-500.0,0.0001863,2]
[389498946,1759683077757,-500.0,0.0001863,2]
[389498947,1759683077766,-500.0,0.0001863,2]
[389498948,1759683077776,-500.0,0.0001863,2]
[389498949,1759683077787,-500.0,0.0001863,2]
[389498950,1759683077797,-1231.65,0.0001863,2]
[389498951,1759683077806,-500.0,0.0001863,2]
[389498952,1759683077816,-656.49,0.0001863,2]
[389498953,1759683077827,-500.0,0.0001863,2]
[389498954,1759683077837,-1288.0,0.0001863,2]
[389498955,1759683077847,-675.41,0.0001863,2]
[389498956,1759683077856,-519.32,0.0001863,2]
[389498957,1759683077866,-828.85,0.0001863,2]
[389498958,1759683077877,-843.89,0.0001863,2]
[389498959,1759683077888,-500.0,0.0001863,2]
[389498960,1759683077899,-500.0,0.0001863,2]
[389498961,1759683077909,-500.0,0.0001863,2]
[389498962,1759683077919,-1439.12,0.0001863,2]
[389498963,1759683077929,-500.0,0.0001863,2]
[389498964,1759683077939,-1208.03,0.0001863,2]
[389498965,1759683077948,-500.0,0.0001863,2]
[389498966,1759683077965,-2847.73,0.0001863,2]
[389498967,1759683077976,-500.0,0.0001863,2]
[389498968,1759683077986,-1201.88,0.0001863,2]
[389498969,1759683077995,-500.0,0.0001863,2]
[389498970,1759683078005,-5256.88613571,0.0001863,2]
[389498971,1759683078021,-2286.53386429,0.0001863,2]
[389498972,1759683078032,-2501.47,0.0001863,2]
[389498973,1759683078043,-605.92,0.0001863,2]
[389498974,1759683078053,-2829.49,0.0001863,2]
[389498975,1759683078063,-7633.12,0.0001863,2]
[389498976,1759683078072,-500.0,0.0001863,2]
[389498977,1759683078082,-138.07564608,0.0001863,2]
[389498978,1759683079222,5000.0,0.00016,2]
[389498979,1759683079945,172.64065079,0.00019912,9]
[389498980,1759683086351,1396.70975803,0.00016,2]
[389498981,1759683125217,597.6748911,0.00020078,9]